Cogmind - Beta 13 @@@ ROGUE MODE // 2024.04.06 @ 03:26:19 Player: Kafouille Result: Destroyed by R4-KTN(R) with Subdweller Laser Performance ------------- Evolutions (0) 0 Regions Visited (3) 600 Robots Destroyed (39) 195 Value Destroyed (979) 979 Prototype IDs (6) 120 Alien Tech Used (0) 0 Bonus (43) 43 TOTAL SCORE: 1937 Bonus ------- High Alert Combat Kills 43 Cogmind --------- Core Integrity 0/250 Matter 226/300 Energy 23/100 System Corruption 4% Temperature Cool (6) Movement Walking (190) Ox1 Location -10/Subcaves Parts ------- > --- POWER (1) -------- (None) > --- PROPULSION (2) --- Improved Aluminum Leg > --- UTILITY (2) ------ Medium Storage Unit > --- WEAPON (2) ------- Medium Laser Flamer > --- INVENTORY (10) --- Heat Sink Small Storage Unit Shield Generator Hacking Suite Mace Peak State ------------ > --- POWER ------------ Light Ion Engine > --- PROPULSION ------- Improved Aluminum Leg Improved Aluminum Leg > --- UTILITY ---------- Medium Storage Unit Medium Armor Plating > --- WEAPON ----------- Beamcaster Rocket Launcher > --- INVENTORY -------- Improved Aluminum Leg Heat Sink Small Storage Unit Shield Generator Hacking Suite Medium Laser Mace [Rating: 16] Favorites ----------- Power Light Ion Engine Engine Light Ion Engine Power Core Light Nuclear Core Propulsion Improved Aluminum Leg Leg Improved Aluminum Leg Wheel Wheel Utility Medium Armor Plating Storage Small Storage Unit Protection Medium Armor Plating Weapon Assault Rifle Energy Gun Heavy EM Pulse Gun Ballistic Gun Assault Rifle Launcher Rocket Launcher Special Weapon Flamer Impact Weapon Mace Build | -11 -10 -10 -10 ------- Run | Yrd Mat Min Sub Slots Evolved . | . . . . Power . | . . . . Propulsion . | . . . . Utility . | . . . . Weapon . | . . . . Parts Attached 33 | 6 14 8 5 Power 5 | 1 2 2 . Engine 4 | 1 2 1 . Core 1 | . . 1 . Reactor . | . . . . Propulsion 6 | 2 2 1 1 Treads . | . . . . Leg 4 | . 2 1 1 Wheel 2 | 2 . . . Hover . | . . . . Flight . | . . . . Utility 5 | 1 3 1 . Device . | . . . . Storage 2 | 1 1 . . Processor . | . . . . Hackware . | . . . . Protection 3 | . 2 1 . Artifact . | . . . . Weapon 17 | 2 7 4 4 Energy Gun 9 | 2 3 2 2 Energy Cannon . | . . . . Ballistic Gun 3 | . 3 . . Ballistic Cannon . | . . . . Launcher 2 | . 1 1 . Special Weapon 1 | . . . 1 Impact Weapon 2 | . . 1 1 Slashing Weapon . | . . . . Piercing Weapon . | . . . . Special Melee Weapon . | . . . . Unidentified Prototypes . | . . . . Parts Lost 16 | . 5 5 6 Power 3 | . 1 1 1 Propulsion 4 | . 1 1 2 Utility 2 | . . 1 1 Weapon 7 | . 3 2 2 Highest Loss Streak 5 | . 3 5 3 To Critical Strikes . | . . . . Average Slot Usage (%) 93 | . 97 94 76 Engine 11 | . 13 11 3 Leg 19 | . 13 27 26 Wheel 8 | . 14 . . Storage 14 | . 14 14 14 Protection 11 | . 12 13 3 Energy Gun 5 | . 5 6 3 Ballistic Gun 11 | . 16 7 . Launcher 7 | . 6 7 12 Impact Weapon 2 | . . 1 10 Naked Turns . | . . . . Heaviest Build 29 | 13 26 29 29 Greatest Support 26 | 20 26 26 26 Greatest Overweight (x) 5 | . 5 1 1 Average Overweight (x) . | . . . . Largest Inventory Capacity 10 | 8 10 10 10 Average Capacity 8 | 7 8 10 10 Most Carried 10 | 4 9 10 7 Average Carried 6 | 1 5 7 6 Final Capacity 10 | 8 10 10 10 Final Carried 9 | 1 9 7 5 Class Distribution -------------------- 100% | Mutant Dominant Class ---------------- Mutant | -10/Materials Mutant | -10/Mines Mutant | -10/Subcaves Resources | -11 -10 -10 -10 ----------- Run | Yrd Mat Min Sub Matter Collected 1027 | 109 654 202 62 Remotely . | . . . . Salvage Created 969 | . 691 119 159 Parts 74 | . 52 11 11 Haulers Intercepted 2 | . 2 . . Recyclers Shooed 3 | . 2 1 . Parts Field Recycled . | . . . . Retrieved Matter . | . . . . Parts Self-Destructed 4 | . . . 4 Prevented . | . . . . Kills | -11 -10 -10 -10 ------- Run | Yrd Mat Min Sub Combat Hostiles Destroyed 27 | . 18 3 6 Guns 10 | . 8 2 . AOE 16 | . 10 1 5 Classes Destroyed 11 | . 8 2 1 Worker 2 | . 1 1 . Builder 1 | . 1 . . Tunneler 1 | . . 1 . Hauler 2 | . 2 . . Recycler 1 | . 1 . . Operator 2 | . 2 . . Watcher 3 | . 3 . . Swarmer 6 | . 6 . . Grunt 14 | . 12 2 . Demolisher 1 | . . 1 . Subdweller 6 | . . . 6 Best Kill Streak 7 | . 7 3 3 Combat Bots Only 7 | . 7 2 3 Max Kills in Single Turn 3 | . 3 2 1 Gunslinging . | . . . . Exploded 3 | . 3 1 1 Melee . | . . . . Uniques/NPCs Destroyed . | . . . . Combat | -11 -10 -10 -10 -------- Run | Yrd Mat Min Sub Hostile Shots Fired 128 | . 65 33 30 Missed 36 | . 22 5 9 Damage Taken 1700 | . 565 580 555 Core 259 | . 64 32 163 Absorbed by Shields . | . . . . Core Remaining (%) 100 | 100 . . . Volleys Fired 122 | . 92 19 11 Largest 2 | . 2 2 2 Hottest 175 | . 80 83 175 Shots Fired 194 | . 146 33 15 Gun 161 | . 127 31 3 Cannon . | . . . . Launcher 31 | . 19 2 10 Special 2 | . . . 2 Kinetic 107 | . 83 24 . Thermal 25 | . 13 7 5 Explosive 31 | . 19 2 10 Electromagnetic 31 | . 31 . . Robot Hit Streak 10 | . 10 6 5 Robot Miss Streak 6 | . 5 6 1 Penetration Max . | . . . . Secondary Targets 2 | . 2 . . Max Gunslinging Chain 1 | . 1 . . Shots Hit Robots 109 | . 79 18 12 Core Hits 62 | . 39 13 10 Critical Kills . | . . . . Critical Parts Destroyed . | . . . . Critical Strikes . | . . . . Melee Attacks 4 | . . . 4 Impact 4 | . . . 4 Slashing . | . . . . Piercing . | . . . . Sneak Attacks . | . . . . Combat Hostiles . | . . . . Follow-up Attacks . | . . . . Damage Inflicted 3113 | . 1909 329 875 Guns 1359 | . 1056 239 64 Cannons . | . . . . Explosions 1615 | . 831 87 697 Melee 94 | . . . 94 Ramming 25 | . 22 3 . Kinetic 794 | . 593 201 . Thermal 320 | . 198 38 84 Explosive 1543 | . 759 87 697 Electromagnetic 337 | . 337 . . Impact 94 | . . . 94 Slashing . | . . . . Piercing . | . . . . Highest Corruption 4 | . . 4 4 Average Corruption 3 | . . 3 4 Corruption Purged . | . . . . Corruption Blocked . | . . . . Effects 13 | . . 5 8 Message Errors 5 | . . 1 4 Matter Fused 3 | . . 2 1 Heat Flow Errors 2 | . . 1 1 Energy Discharges 1 | . . 1 . Misfires 2 | . . . 2 Overload Shots . | . . . . Overflow Damage 36 | . 31 . 5 Projectiles . | . . . . Explosions 31 | . 31 . . Melee 5 | . . . 5 Knockbacks 1 | . . . 1 Impact 1 | . . . 1 Kinetic . | . . . . Secondary . | . . . . Self-Inflicted Damage 204 | . 108 . 96 Shots 5 | . 3 . 2 Rammed 2 | . 2 . . Targets Rammed 3 | . 2 1 . Kicked 1 | . . 1 . Crushed . | . . . . Highest Temperature 198 | . 198 48 85 Average Temperature 40 | . 45 23 47 Received Heat Transfer 438 | . 243 114 81 Siege Activations . | . . . . Robots Corrupted . | . . . . Combat Hostiles . | . . . . Parts Fried 2 | . 1 . 1 Impact Corruptions 1 | . . . 1 Robots Melted . | . . . . Combat Hostiles . | . . . . Parts Melted . | . . . . Heat Transferred 802 | . 420 111 271 Parts Sabotaged . | . . . . Parts Stolen . | . . . . Parts Stripped . | . . . . Power Chain Reactions 2 | . 2 . . Alert | -11 -10 -10 -10 ------- Run | Yrd Mat Min Sub Peak Influence 513 | . 513 231 . Initial 156 | . . 156 . Average 262 | . 330 139 . Maximum Alert Level 2 | . 2 1 . Low Security (%) 29 | 100 7 69 . Level 1 51 | . 63 30 . Level 2 19 | . 29 . . Level 3 . | . . . . Level 4 . | . . . . Level 5 . | . . . . High Security . | . . . . Max Security . | . . . . Squads Dispatched 6 | . 6 . . Investigation 2 | . 2 . . Extermination . | . . . . Reinforcement 4 | . 4 . . Assault . | . . . . Garrison . | . . . . Intercept . | . . . . Searches Triggered . | . . . . Construction Impeded . | . . . . Haulers Reinforced . | . . . . Active Scanning Responses . | . . . . Cargo Convoy Interrupts . | . . . . Stealth | -11 -10 -10 -10 --------- Run | Yrd Mat Min Sub Distress Signals . | . . . . Communications Jammed . | . . . . Distress Signals . | . . . . Times Spotted 61 | . 36 18 7 Peak Tracking Total 13 | . 6 13 2 Tactical Retreats 3 | . 2 1 . Traps | -11 -10 -10 -10 ------- Run | Yrd Mat Min Sub Traps Triggered 2 | . 2 . . Indirectly . | . . . . Trap Hack Attempts . | . . . . Triggered . | . . . . Disarmed . | . . . . Reprogrammed . | . . . . Reused . | . . . . Traps Extracted . | . . . . Installed . | . . . . Triggered . | . . . . Machines | -11 -10 -10 -10 ---------- Run | Yrd Mat Min Sub Machines Disabled 2 | . 2 . . Max in Single Turn 1 | . 1 . . Machines Repaired . | . . . . Machines Dismantled . | . . . . Machines Sabotaged . | . . . . Overloaded Fab Kills . | . . . . Hacking | -11 -10 -10 -10 --------- Run | Yrd Mat Min Sub Machines Accessed 3 | . 3 . . Terminals 3 | . 3 . . Fabricators . | . . . . Repair Stations . | . . . . Recycling Units . | . . . . Scanalyzers . | . . . . Garrison Access . | . . . . Total Hacks 4 | . 4 . . Successful 3 | . 3 . . Failed 1 | . 1 . . Catastrophic . | . . . . Database Lockouts . | . . . . Manual . | . . . . Terminals 4 | . 4 . . Fabricators . | . . . . Repair Stations . | . . . . Recycling Units . | . . . . Scanalyzers . | . . . . Garrison Access . | . . . . Terminal Hacks 3 | . 3 . . Prototype ID Bank 3 | . 3 . . Fabricator Hacks . | . . . . Repair Station Hacks . | . . . . Recycling Unit Hacks . | . . . . Scanalyzer . | . . . . Garrison Access Hacks . | . . . . Unauthorized Hacks . | . . . . Terminals . | . . . . Fabricators . | . . . . Repair Stations . | . . . . Recycling Units . | . . . . Scanalyzers . | . . . . Garrison Access . | . . . . Data Cores Recovered . | . . . . Used . | . . . . Hacking Detections 1 | . 1 . . Full Trace Events . | . . . . Feedback Events . | . . . . Feedback Blocked . | . . . . Robot Schematics Acquired . | . . . . Robots Built . | . . . . Authchips . | . . . . Time . | . . . . Total Robot Build Rating . | . . . . Part Schematics Acquired . | . . . . Parts Built . | . . . . Authchips . | . . . . Time . | . . . . Total Part Build Rating . | . . . . Parts Repaired . | . . . . Time . | . . . . Parts Recycled . | . . . . Recycled Matter . | . . . . Retrieved Matter . | . . . . Retrieved Components . | . . . . Parts Scanalyzed . | . . . . Part Schematics Acquired . | . . . . Parts Damaged . | . . . . Bothacking | -11 -10 -10 -10 ------------ Run | Yrd Mat Min Sub Used RIF Installer . | . . . . Robots Hacked . | . . . . Non-combat . | . . . . Combat . | . . . . Robot Hacks Applied . | . . . . Relay Couplers Released . | . . . . Fabnet Peak Effective % . | . . . . Robots Rewired . | . . . . Allies Hacked . | . . . . Hacks Repelled . | . . . . Allies | -11 -10 -10 -10 -------- Run | Yrd Mat Min Sub Total Allies . | . . . . Largest Group . | . . . . Highest-Rated Group . | . . . . Highest-Rated Ally . | . . . . Total Orders . | . . . . Ally Attacks . | . . . . Total Damage . | . . . . Kills . | . . . . Allies Corrupted . | . . . . Allies Melted . | . . . . Intel | -11 -10 -10 -10 ------- Run | Yrd Mat Min Sub Robot Analysis Total . | . . . . Derelict Logs Recovered 2 | . . 1 1 Drone Launches . | . . . . Drone Recoveries . | . . . . Exploration | -11 -10 -10 -10 ------------- Run | Yrd Mat Min Sub Turns Passed 2133 | 38 1170 574 351 Spaces Moved 1537 | 34 894 385 224 Core 6 | 5 1 . . Treads . | . . . . Legs 991 | . 382 385 224 Wheels 540 | 29 511 . . Hover . | . . . . Flight . | . . . . Fastest Speed 50 | 50 80 120 120 Average Speed 110 | 75 97 131 132 Slowest Speed 300 | 80 300 190 190 Overloaded Moves . | . . . . Propulsion Burnouts . | . . . . Robots Hopped . | . . . . Cave-ins Triggered . | . . . . Exploration Rate (%) 41 | 3 95 54 15 Regions Visited 3 Branch Regions 2 Pre-discovered Areas . | . . . . Known Exits Taken . | . . . . Unknown Exits Taken 3 | 1 1 1 . Scrap Searched 1 | . . 1 . Spaces Dug . | . . . . Terrain Destroyed 180 | . 106 21 53 Melee . | . . . . Projectile . | . . . . AOE 180 | . 106 21 53 Terrain Rammed . | . . . . Walls Destroyed . | . . . . Machines Disabled . | . . . . Actions | -11 -10 -10 -10 --------- Run | Yrd Mat Min Sub Total 1764 | 46 1045 418 255 Wait 29 | . 18 1 10 Move 1534 | 33 893 384 224 Hop . | . . . . Pick Up 31 | 7 19 4 1 Fast Attach 1 | . 1 . . Attach 21 | 6 7 5 3 Detach . | . . . . Swap 11 | . 6 3 2 Drop 8 | . 7 1 . Fire 122 | . 92 19 11 Melee 4 | . . . 4 Ram 2 | . 2 . . Kick 1 | . . 1 . Crush . | . . . . Escape Stasis . | . . . . Rewire . | . . . . Trap . | . . . . Miscellaneous . | . . . . Route ------- -11/Scrapyard -10/Materials (discovered 5 exits: [*Mat x3] / [*Min x2]) -10/Mines (discovered 2 exits: [*Mat] / [*Sub]) -10/Subcaves (discovered 1 exit: Mat) History --------- Turn | Location | Event 22 | -11/Scrapyard | Discovered new exit (range 15) 39 | -11/Scrapyard | Entered Materials 146 | -10/Materials | Destroyed 7 combat bots 173 | -10/Materials | Discovered new exit (range 13) 314 | -10/Materials | Build established: Mutant 371 | -10/Materials | Discovered new exit (range 10) 652 | -10/Materials | Lost 3 parts (1n2w) 701 | -10/Materials | Discovered new exit (range 10) 871 | -10/Materials | Discovered new exit (range 15) 982 | -10/Materials | Discovered new exit (range 12) 1209 | -10/Materials | Entered Mines 1215 | -10/Mines | Met a Derelict bent on vengeance 1269 | -10/Mines | Discovered new exit (range 9) 1340 | -10/Mines | Assembled infested the area 1410 | -10/Mines | Lost 5 parts (1p1n1u2w) 1425 | -10/Mines | Learned Materials terminal intel 1455 | -10/Mines | Received a Rocket Launcher from a helpful Derelict 1779 | -10/Mines | Discovered new exit (range 3) 1783 | -10/Mines | Entered Subcaves 1785 | -10/Subcaves | Identified exit to Materials 1821 | -10/Subcaves | Shifting Twisted Machinery released Sub. Machine Gun 1992 | -10/Subcaves | Core integrity fell below 50% 2033 | -10/Subcaves | Ambushed by Subdwellers from Twisted Machinery 2131 | -10/Subcaves | Core integrity fell below 20% 2134 | -10/Subcaves | Destroyed by R4-KTN(R) with Subdweller Laser Last Messages --------------- 02013_ Sub. Machine Gun fried. 02017_ Subatomizers dissect the Corrupted Sub. Monowheel. 02017_ Acquired Flamer. 02018_ Acquired 27 matter. 02029_ The unstable cave ceiling collapses. 02040_ UU-J9N(R) affixes Scrap Shield Fragment to Scrap Shield. 02041_ VR-SE1(R) affixes Scrap Shield Fragment to Scrap Shield. 02044_ UU-J9N(R) destroyed. 02046_ VR-SE1(R) destroyed. 02047_ 3IO0C,YJW#:XO58QB1VT,6OCC6SDOR 02055_ Acquired 8 matter. 02059_ Subatomizers dissect the Sub. Monowheel, destroying it. 02083_ Acquired 10 matter. 02101_ Imp. Aluminum Leg destroyed. 02101_ Destroyed Imp. Aluminum Leg. 02101_ Rocket Launcher destroyed. 02106_ The unstable cave ceiling collapses. 02128_ System corrupted: FCS attempts to trigger Beamcaster. 02128_ System corrupted: Beamcaster misfires. 02131_ Beamcaster destroyed. Map ----- +----------------------------------------------------+ | ???????# # # # ###??????????????????????? | | ???????# # ####### # ??????????????????????? | | ???????# ##### #### ## #??????????????????????? | | ???????##?#### ## #??????????????????????? | | ??????????# ### #??????????????????????? | | ??????????# #?# #??????????????????????? | | ??????????# " ### ##??????????????#??????? | | ????????# ## """## " ###????????? #?????? | | ????????# #?## " #????????? #?????? | | ????????## #???## ! ["##???????? ??????? | | ?????????# ?????## "###????? #??????? | | ?????????# #??????## & " #????? #??????? | | ?????????##????????# ###??? #??????? | | ???????????????????## #?? #??????? | | ????????????????????# #?? #??????? | | ????????????????????## ##? #??????? | | ?????????????????????### ## #???????? | | ???????????????????????## ## #???## ## | | ??????????????????##????# ""#### ### # | | ??????????????????# "???## "#??# # | | ??????????????????#"" ???## " ??# # | | ?????????????????##" ???#####?# ## ## | | ?????????????????# ########## #??? ##? | | ?????????????????## # # # # #??????? | | ?????????????????# R ###??????? | | ??????????# @ R ##????????? | | ???????????????# #### # # #?????????? | | ???????????????????????##### ##?????????? | | ???????????????????????## ##??????????? | | ???????????????????????# #???????????? | | ???????????????????????# #######???????????? | | ???????????????????????# #####?????????????????? | | ???????????????????????# #???????????????????? | | ???????????????????????# ##???????????????????? | | ???????????????????????# ##???????????????????? | | ?????????????????????? #????????????????????? | | ????????????????????? ???????????????????? | | ??????????????????? #??????????????????? | | ????????????????? #??????????????????? | | ??????????????? ##??????????????????? | | ??????????????# ###???????????????????? | | ??????????????### ####?????????????????????? | | ????????????????#" #?????????????????????????? | | ????????????????"" ??????????????????????????? | | ????????????????#### ##??????????????????????????? | | ???????????????????#"????????????????????????????? | | ???????????????????#?????????????????????????????? | | ?????????????????????????????????????????????????? | | ?????????????????????????????????????????????????? | | ?????????????????????????????????????????????????? | +----------------------------------------------------+ Best States ------------- Heat Dissipation 25 Energy Generation 14 Energy Capacity 250 Matter Stores 300 Matter Capacity 300 Sight Range 16 Terrain Scan Density 10 Armor Coverage 225 Evasion (%) 55 Item Schematics ----------------- None Robot Schematics ------------------ None Fabricated ------------ Nothing Alien Tech Used ----------------- None Achievements -------------- I Survived The Infestation Slippery One Challenges ------------ None Game ------ Seed MediumDroneGuard Manual? 0 Play Time 00:25:18 Cumulative 9.5 hours Start 2024.04.06 @ 03:00:09 End 2024.04.06 @ 03:26:19 Sessions 1 Manual Loads 0 Difficulty Rogue Special Mode None Game No. 9 Rogue 9 Adventurer 0 Explorer 0 Win Type - Total 0 Types 0/0/0/0/0/0/0/0/0 Lore% 6 Gallery% 13 Achievement% 11 Wizard Run 0 Options --------- Layout 0 ASCII 0 Keyboard 0 Movement Numpad Keybinds 0 Fullscreen 2 Font 24/Smallcaps Map View 76x50 Zoom Use 0% Tactical HUD 1 Map Filters NONE Filters NONE Steam 1 RUN: 00f107cb-3682-4cf1-8365-50a5198191e4